[Event "Early-Titled-Tuesday-Blitz-September-05-2023"]
[Site "Chess.com"]
[Date "2023.09.05"]
[Round "9"]
[White "Flaccidmoves"]
[Black "SCIM"]
[Result "1-0"]
[WhiteElo "2493"]
[BlackElo "2595"]
[TimeControl "180+1"]
[EndTime "9:43:13 PDT"]
[Termination "Flaccidmoves won by resignation"]

1. c4 {[%clk 0:03:00.9]} 1... e5 {[%clk 0:02:58.8]} 2. Nc3 {[%clk 0:03:01.1]}
2... Nf6 {[%clk 0:02:58.8]} 3. Nf3 {[%clk 0:03:01.1]} 3... Nc6 {[%clk
0:02:58.6]} 4. e3 {[%clk 0:03:01.5]} 4... Bb4 {[%clk 0:02:57.7]} 5. Qc2 {[%clk
0:03:01.8]} 5... O-O {[%clk 0:02:56.8]} 6. Nd5 {[%clk 0:02:56.5]} 6... Be7
{[%clk 0:02:54.5]} 7. Nxe7+ {[%clk 0:02:50.1]} 7... Qxe7 {[%clk 0:02:53.1]} 8.
a3 {[%clk 0:02:48.2]} 8... d6 {[%clk 0:02:50.6]} 9. d3 {[%clk 0:02:45.6]} 9...
Bg4 {[%clk 0:02:47.4]} 10. Be2 {[%clk 0:02:44.8]} 10... e4 {[%clk 0:02:27.2]}
11. dxe4 {[%clk 0:02:37.1]} 11... Nxe4 {[%clk 0:02:28.1]} 12. O-O {[%clk
0:02:33.4]} 12... Rae8 {[%clk 0:02:23.6]} 13. b4 {[%clk 0:02:27.9]} 13... Qf6
{[%clk 0:02:09.3]} 14. Bb2 {[%clk 0:02:26.5]} 14... Qg6 {[%clk 0:02:09.6]} 15.
Rac1 {[%clk 0:01:55.3]} 15... Bh3 {[%clk 0:01:58.8]} 16. Ne1 {[%clk 0:01:43.7]}
16... Bf5 {[%clk 0:01:29.5]} 17. Qd1 {[%clk 0:01:25.1]} 17... Qh6 {[%clk
0:01:18.7]} 18. Nd3 {[%clk 0:01:21.6]} 18... Ne5 {[%clk 0:01:15.5]} 19. Nf4
{[%clk 0:01:04.8]} 19... c6 {[%clk 0:01:07.4]} 20. f3 {[%clk 0:00:45.5]} 20...
Nf6 {[%clk 0:01:05.3]} 21. Qd2 {[%clk 0:00:45.3]} 21... Rd8 {[%clk 0:01:01.2]}
22. e4 {[%clk 0:00:43.6]} 22... Bc8 {[%clk 0:00:57.8]} 23. Rfd1 {[%clk 0:00:38]}
23... Ng6 {[%clk 0:00:56.7]} 24. Nd3 {[%clk 0:00:27.8]} 24... Qxd2 {[%clk
0:00:52.3]} 25. Rxd2 {[%clk 0:00:28.7]} 25... Nh5 {[%clk 0:00:51.8]} 26. Rcd1
{[%clk 0:00:26.8]} 26... Nhf4 {[%clk 0:00:50.5]} 27. Nxf4 {[%clk 0:00:26.9]}
27... Nxf4 {[%clk 0:00:50]} 28. Bf1 {[%clk 0:00:27.6]} 28... f5 {[%clk
0:00:49.2]} 29. exf5 {[%clk 0:00:23.3]} 29... d5 {[%clk 0:00:47.7]} 30. g3
{[%clk 0:00:21.6]} 30... Nh5 {[%clk 0:00:44.1]} 31. cxd5 {[%clk 0:00:21]} 31...
cxd5 {[%clk 0:00:43.1]} 32. Rxd5 {[%clk 0:00:21.6]} 32... Rde8 {[%clk
0:00:43.3]} 33. Rc5 {[%clk 0:00:16.7]} 33... Nf6 {[%clk 0:00:29.7]} 34. Rc7
{[%clk 0:00:16]} 34... Bxf5 {[%clk 0:00:28.9]} 35. Bc4+ {[%clk 0:00:14.3]} 35...
Kh8 {[%clk 0:00:28.4]} 36. Rxb7 {[%clk 0:00:14]} 36... Rc8 {[%clk 0:00:28]} 37.
Bb3 {[%clk 0:00:14]} 37... Bc2 {[%clk 0:00:27]} 38. Bxc2 {[%clk 0:00:12.1]}
38... Rxc2 {[%clk 0:00:27.9]} 39. Bxf6 {[%clk 0:00:12.2]} 39... gxf6 {[%clk
0:00:27.5]} 40. Rdd7 {[%clk 0:00:12.8]} 40... Re8 {[%clk 0:00:26.7]} 41. Rxh7+
{[%clk 0:00:12.6]} 41... Kg8 {[%clk 0:00:27.3]} 42. Rbg7+ {[%clk 0:00:12.9]}
42... Kf8 {[%clk 0:00:27.8]} 43. Rh8+ {[%clk 0:00:11.7]} 43... Kxg7 {[%clk
0:00:27.5]} 44. Rxe8 {[%clk 0:00:12.3]} 44... Rc3 {[%clk 0:00:23.6]} 45. Re7+
{[%clk 0:00:12.2]} 45... Kg6 {[%clk 0:00:24.2]} 46. Rxa7 {[%clk 0:00:12.8]}
46... Rxf3 {[%clk 0:00:24.4]} 47. b5 {[%clk 0:00:13.2]} 47... Rb3 {[%clk
0:00:24.7]} 48. a4 {[%clk 0:00:12.7]} 48... Rb2 {[%clk 0:00:25]} 49. Re7 {[%clk
0:00:08.4]} 49... Rb4 {[%clk 0:00:21.6]} 50. Ra7 {[%clk 0:00:06.4]} 50... Rb2
{[%clk 0:00:21.7]} 51. h3 {[%clk 0:00:05.8]} 51... Kf5 {[%clk 0:00:22.1]} 52.
Ra6 {[%clk 0:00:05.9]} 52... Ke5 {[%clk 0:00:20.6]} 53. b6 {[%clk 0:00:05.3]}
53... f5 {[%clk 0:00:20.6]} 54. Ra5+ {[%clk 0:00:05.5]} 54... Ke4 {[%clk
0:00:20.4]} 55. Rb5 {[%clk 0:00:06.4]} 55... Rc2 {[%clk 0:00:13.8]} 56. Rb4+
{[%clk 0:00:05.5]} 56... Kf3 {[%clk 0:00:14.7]} 57. Rb3+ {[%clk 0:00:05.5]}
57... Ke4 {[%clk 0:00:12.6]} 58. b7 {[%clk 0:00:05.9]} 58... Rc1+ {[%clk
0:00:13]} 59. Kf2 {[%clk 0:00:05.9]} 59... Rc2+ {[%clk 0:00:13.9]} 60. Ke1
{[%clk 0:00:06.3]} 60... Rc1+ {[%clk 0:00:14.4]} 61. Kd2 {[%clk 0:00:06.8]}
61... Rc7 {[%clk 0:00:14.5]} 62. b8=Q {[%clk 0:00:07]} 62... Rd7+ {[%clk
0:00:15.4]} 63. Kc2 {[%clk 0:00:07]} 1-0

[Event "Early-Titled-Tuesday-Blitz-September-05-2023"]
[Site "Chess.com"]
[Date "2023.09.05"]
[Round "9"]
[White "WildTricks"]
[Black "fen_fire"]
[Result "1-0"]
[WhiteElo "2632"]
[BlackElo "2480"]
[TimeControl "180+1"]
[EndTime "9:43:14 PDT"]
[Termination "WildTricks won on time"]

1. e4 {[%clk 0:03:00.9]} 1... d6 {[%clk 0:02:19.4]} 2. d4 {[%clk 0:03:00.3]}
2... Nd7 {[%clk 0:02:19.1]} 3. Nf3 {[%clk 0:02:59.2]} 3... Ngf6 {[%clk
0:02:19.5]} 4. Nc3 {[%clk 0:02:58.7]} 4... e5 {[%clk 0:02:19.2]} 5. Bc4 {[%clk
0:02:57.3]} 5... Be7 {[%clk 0:02:18.5]} 6. O-O {[%clk 0:02:57.8]} 6... O-O
{[%clk 0:02:19.1]} 7. Re1 {[%clk 0:02:58.2]} 7... c6 {[%clk 0:02:19.4]} 8. a4
{[%clk 0:02:58.3]} 8... b6 {[%clk 0:02:16.8]} 9. b3 {[%clk 0:02:58.3]} 9... a6
{[%clk 0:02:15.4]} 10. d5 {[%clk 0:02:56.7]} 10... c5 {[%clk 0:02:06.4]} 11. h3
{[%clk 0:02:38.3]} 11... Re8 {[%clk 0:02:06.2]} 12. Be3 {[%clk 0:02:26.5]} 12...
Nf8 {[%clk 0:02:06.2]} 13. Nd2 {[%clk 0:02:24.4]} 13... Ng6 {[%clk 0:02:06.5]}
14. Kh2 {[%clk 0:02:17.4]} 14... h6 {[%clk 0:02:00.9]} 15. Bf1 {[%clk
0:02:12.1]} 15... Nh7 {[%clk 0:02:00.6]} 16. g3 {[%clk 0:02:10.9]} 16... Bg5
{[%clk 0:01:59.6]} 17. h4 {[%clk 0:02:07.4]} 17... Bxh4 {[%clk 0:01:25.5]} 18.
gxh4 {[%clk 0:02:04.8]} 18... Qxh4+ {[%clk 0:01:26.4]} 19. Kg1 {[%clk 0:02:05]}
19... Ng5 {[%clk 0:01:13.6]} 20. Bg2 {[%clk 0:01:52]} 20... Bh3 {[%clk
0:00:34.3]} 21. Qe2 {[%clk 0:00:23.5]} 21... Bxg2 {[%clk 0:00:30.2]} 22. Kxg2
{[%clk 0:00:24.4]} 22... Qh3+ {[%clk 0:00:30.1]} 23. Kg1 {[%clk 0:00:24.3]}
23... Nh4 {[%clk 0:00:30.6]} 24. f3 {[%clk 0:00:10.2]} 24... Ngxf3+ {[%clk
0:00:30.3]} 25. Nxf3 {[%clk 0:00:09.9]} 25... Nxf3+ {[%clk 0:00:31.2]} 26. Kf2
{[%clk 0:00:10.2]} 26... Nxe1 {[%clk 0:00:29.2]} 27. Rxe1 {[%clk 0:00:11.1]}
27... f5 {[%clk 0:00:27.3]} 28. Qf1 {[%clk 0:00:09.9]} 28... Qh5 {[%clk
0:00:20.6]} 29. Qg2 {[%clk 0:00:07.5]} 29... Rf8 {[%clk 0:00:18.5]} 30. Rg1
{[%clk 0:00:06.9]} 30... g5 {[%clk 0:00:14.7]} 31. Ke1 {[%clk 0:00:06.1]} 31...
f4 {[%clk 0:00:14.2]} 32. Bd2 {[%clk 0:00:05.2]} 32... f3 {[%clk 0:00:13.3]} 33.
Qf2 {[%clk 0:00:04.4]} 33... b5 {[%clk 0:00:12.1]} 34. a5 {[%clk 0:00:03.7]}
34... g4 {[%clk 0:00:08.7]} 35. Nd1 {[%clk 0:00:03.9]} 35... Qg6 {[%clk
0:00:07.1]} 36. Ne3 {[%clk 0:00:03.9]} 36... h5 {[%clk 0:00:07.7]} 37. Nf5
{[%clk 0:00:03]} 37... Rxf5 {[%clk 0:00:06.8]} 38. exf5 {[%clk 0:00:03.9]} 38...
Qxf5 {[%clk 0:00:07.7]} 39. Qe3 {[%clk 0:00:04.6]} 39... Rf8 {[%clk 0:00:04.9]}
40. Kf2 {[%clk 0:00:05.2]} 40... Qxc2 {[%clk 0:00:04.3]} 41. Qg5+ {[%clk
0:00:05.7]} 41... Kf7 {[%clk 0:00:04.4]} 42. Qxh5+ {[%clk 0:00:06.1]} 42... Qg6
{[%clk 0:00:03.1]} 43. Qxg6+ {[%clk 0:00:05.5]} 43... Kxg6 {[%clk 0:00:04]} 44.
Rxg4+ {[%clk 0:00:05.8]} 44... Kf5 {[%clk 0:00:04.2]} 45. Kxf3 {[%clk
0:00:04.8]} 45... Rh8 {[%clk 0:00:02.9]} 46. Rg5+ {[%clk 0:00:04.8]} 46... Kf6
{[%clk 0:00:03.8]} 47. Rg3 {[%clk 0:00:04.1]} 47... Rh4 {[%clk 0:00:04]} 48.
Bg5+ {[%clk 0:00:04.4]} 48... Kf5 {[%clk 0:00:03.9]} 49. Bxh4 {[%clk 0:00:05.3]}
49... e4+ {[%clk 0:00:03.7]} 50. Ke3 {[%clk 0:00:04.9]} 50... c4 {[%clk
0:00:04.6]} 51. Rg5+ {[%clk 0:00:05]} 1-0

[Event "Early-Titled-Tuesday-Blitz-September-05-2023"]
[Site "Chess.com"]
[Date "2023.09.05"]
[Round "9"]
[White "Bobbybunny"]
[Black "m_ezat"]
[Result "0-1"]
[WhiteElo "2173"]
[BlackElo "2681"]
[TimeControl "180+1"]
[EndTime "9:43:15 PDT"]
[Termination "m_ezat won on time"]

1. e4 {[%clk 0:03:00.9]} 1... Nf6 {[%clk 0:00:38.2]} 2. e5 {[%clk 0:02:59.5]}
2... Nd5 {[%clk 0:00:37.4]} 3. Qf3 {[%clk 0:02:59.1]} 3... e6 {[%clk 0:00:35.4]}
4. Nc3 {[%clk 0:02:58.8]} 4... Nxc3 {[%clk 0:00:35]} 5. dxc3 {[%clk 0:02:58]}
5... d5 {[%clk 0:00:34.9]} 6. Qg3 {[%clk 0:02:54.2]} 6... h5 {[%clk 0:00:33.7]}
7. h4 {[%clk 0:02:52.8]} 7... g6 {[%clk 0:00:32.9]} 8. Bg5 {[%clk 0:02:47.8]}
8... Be7 {[%clk 0:00:32.7]} 9. Nf3 {[%clk 0:02:47.4]} 9... c5 {[%clk 0:00:32.6]}
10. O-O-O {[%clk 0:02:45.7]} 10... Nc6 {[%clk 0:00:32.7]} 11. Bd3 {[%clk
0:02:43.3]} 11... Bd7 {[%clk 0:00:31.4]} 12. Kb1 {[%clk 0:02:41.9]} 12... a6
{[%clk 0:00:30]} 13. Rh3 {[%clk 0:02:35.2]} 13... b5 {[%clk 0:00:29.4]} 14. Bxe7
{[%clk 0:02:25.7]} 14... Qxe7 {[%clk 0:00:28.9]} 15. Ng5 {[%clk 0:02:19.9]}
15... Rb8 {[%clk 0:00:26.6]} 16. Nxf7 {[%clk 0:02:17.7]} 16... Rf8 {[%clk
0:00:17.2]} 17. Nd6+ {[%clk 0:02:09.4]} 17... Kd8 {[%clk 0:00:17.4]} 18. Bxg6
{[%clk 0:02:02.1]} 18... Rg8 {[%clk 0:00:16.8]} 19. Nf7+ {[%clk 0:01:51.8]}
19... Kc7 {[%clk 0:00:16.7]} 20. f4 {[%clk 0:01:39.2]} 20... c4 {[%clk
0:00:16.3]} 21. f5 {[%clk 0:01:30.2]} 21... b4 {[%clk 0:00:13.2]} 22. Rxd5
{[%clk 0:01:09.9]} 22... exd5 {[%clk 0:00:12.4]} 23. e6+ {[%clk 0:01:09.8]}
23... Kb7 {[%clk 0:00:12.8]} 24. exd7 {[%clk 0:01:04.5]} 24... Qxd7 {[%clk
0:00:12.7]} 25. Qe1 {[%clk 0:00:52.8]} 25... Ka7 {[%clk 0:00:12]} 26. Re3 {[%clk
0:00:52.6]} 26... Rge8 {[%clk 0:00:11.1]} 27. Ng5 {[%clk 0:00:45.9]} 27... Rxe3
{[%clk 0:00:11.1]} 28. Qxe3+ {[%clk 0:00:46.2]} 28... d4 {[%clk 0:00:10.2]} 29.
cxd4 {[%clk 0:00:43.5]} 29... Qxd4 {[%clk 0:00:09.9]} 30. Qxd4+ {[%clk
0:00:39.1]} 30... Nxd4 {[%clk 0:00:10.1]} 31. f6 {[%clk 0:00:36.5]} 31... Rb6
{[%clk 0:00:10.3]} 32. Ne4 {[%clk 0:00:22.2]} 32... Ne6 {[%clk 0:00:10.3]} 33.
Bf5 {[%clk 0:00:18.7]} 33... Nf8 {[%clk 0:00:10.8]} 34. Kc1 {[%clk 0:00:16.2]}
34... Rb5 {[%clk 0:00:11.1]} 35. g4 {[%clk 0:00:14]} 35... Re5 {[%clk 0:00:09]}
36. Kd2 {[%clk 0:00:11.9]} 36... hxg4 {[%clk 0:00:09.2]} 37. Ng3 {[%clk
0:00:06.5]} 37... Nd7 {[%clk 0:00:07.3]} 38. f7 {[%clk 0:00:05.3]} 38... Nf8
{[%clk 0:00:07]} 39. h5 {[%clk 0:00:04.6]} 39... Kb6 {[%clk 0:00:07]} 40. h6
{[%clk 0:00:04.8]} 40... Kc7 {[%clk 0:00:07]} 41. h7 {[%clk 0:00:04.9]} 41...
Nxh7 {[%clk 0:00:06.6]} 42. Bxh7 {[%clk 0:00:05.1]} 42... Rd5+ {[%clk 0:00:07]}
43. Ke3 {[%clk 0:00:03.7]} 43... Rd8 {[%clk 0:00:07.7]} 44. Kf4 {[%clk
0:00:03.2]} 44... Kd6 {[%clk 0:00:07.8]} 45. Bg6 {[%clk 0:00:03.6]} 45... Ke7
{[%clk 0:00:08.1]} 46. Nf5+ {[%clk 0:00:03.1]} 46... Kf8 {[%clk 0:00:08.9]} 47.
Nh4 {[%clk 0:00:02.3]} 47... Rd2 {[%clk 0:00:09.8]} 48. Kxg4 {[%clk 0:00:02]}
48... Rxc2 {[%clk 0:00:09.6]} 49. Kh5 {[%clk 0:00:02.5]} 49... Rh2 {[%clk
0:00:08.9]} 50. Kg5 {[%clk 0:00:02.1]} 50... Rxb2 {[%clk 0:00:08.4]} 51. Nf5
{[%clk 0:00:01.9]} 51... Rg2+ {[%clk 0:00:08.1]} 52. Kf6 {[%clk 0:00:02]} 52...
Rf2 {[%clk 0:00:08.1]} 0-1

[Event "Early-Titled-Tuesday-Blitz-September-05-2023"]
[Site "Chess.com"]
[Date "2023.09.05"]
[Round "9"]
[White "Cambek64"]
[Black "wqws"]
[Result "0-1"]
[WhiteElo "2511"]
[BlackElo "2645"]
[TimeControl "180+1"]
[EndTime "9:43:19 PDT"]
[Termination "wqws won on time"]

1. d4 {[%clk 0:02:57.8]} 1... Nf6 {[%clk 0:03:00.1]} 2. Nf3 {[%clk 0:02:58.2]}
2... g6 {[%clk 0:03:00]} 3. Bg5 {[%clk 0:02:58.4]} 3... Bg7 {[%clk 0:03:00.1]}
4. Nbd2 {[%clk 0:02:59]} 4... O-O {[%clk 0:02:58.8]} 5. c3 {[%clk 0:02:59]} 5...
d6 {[%clk 0:02:57.4]} 6. e4 {[%clk 0:02:56.7]} 6... Nbd7 {[%clk 0:02:57]} 7. h3
{[%clk 0:02:55.4]} 7... h6 {[%clk 0:02:55.7]} 8. Bh4 {[%clk 0:02:54.2]} 8... e5
{[%clk 0:02:49.8]} 9. dxe5 {[%clk 0:02:52.3]} 9... Nxe5 {[%clk 0:02:48.5]} 10.
Nxe5 {[%clk 0:02:51.3]} 10... dxe5 {[%clk 0:02:49.1]} 11. Be2 {[%clk 0:02:48.8]}
11... Qe7 {[%clk 0:02:47.1]} 12. O-O {[%clk 0:02:47.8]} 12... c6 {[%clk
0:02:47.2]} 13. a4 {[%clk 0:02:45.6]} 13... Be6 {[%clk 0:02:45]} 14. Qc2 {[%clk
0:02:43.3]} 14... g5 {[%clk 0:02:45.1]} 15. Bg3 {[%clk 0:02:41.7]} 15... Nd7
{[%clk 0:02:45.7]} 16. Bc4 {[%clk 0:02:40.7]} 16... Rfe8 {[%clk 0:02:43.7]} 17.
Rfd1 {[%clk 0:02:34.7]} 17... Rad8 {[%clk 0:02:43.2]} 18. b4 {[%clk 0:02:27.2]}
18... Nf8 {[%clk 0:02:38.1]} 19. Bxe6 {[%clk 0:02:22.5]} 19... Qxe6 {[%clk
0:02:37.9]} 20. Nf1 {[%clk 0:02:20.8]} 20... Ng6 {[%clk 0:02:25.8]} 21. Ne3
{[%clk 0:02:18.3]} 21... Nf4 {[%clk 0:02:26]} 22. f3 {[%clk 0:02:12.6]} 22...
Bf8 {[%clk 0:02:21.6]} 23. Bf2 {[%clk 0:02:12.6]} 23... h5 {[%clk 0:02:10.2]}
24. Nf5 {[%clk 0:02:10.4]} 24... g4 {[%clk 0:02:09.7]} 25. fxg4 {[%clk
0:01:51.5]} 25... hxg4 {[%clk 0:02:09.3]} 26. h4 {[%clk 0:01:52.1]} 26... Qc4
{[%clk 0:01:44]} 27. Ne3 {[%clk 0:01:24.2]} 27... Qxc3 {[%clk 0:01:42.1]} 28.
Qxc3 {[%clk 0:01:20]} 28... Ne2+ {[%clk 0:01:42.6]} 29. Kf1 {[%clk 0:01:20]}
29... Nxc3 {[%clk 0:01:43.1]} 30. Nxg4 {[%clk 0:01:01.6]} 30... Rxd1+ {[%clk
0:01:41.6]} 31. Rxd1 {[%clk 0:00:59.9]} 31... Nxd1 {[%clk 0:01:26.8]} 32. Nf6+
{[%clk 0:00:57.5]} 32... Kh8 {[%clk 0:01:27.1]} 33. Nxe8 {[%clk 0:00:57.1]}
33... Nxf2 {[%clk 0:01:27.5]} 34. Kxf2 {[%clk 0:00:55]} 34... Bxb4 {[%clk
0:01:28.2]} 35. g4 {[%clk 0:00:50.8]} 35... a5 {[%clk 0:01:26.8]} 36. g5 {[%clk
0:00:46.2]} 36... b5 {[%clk 0:01:25]} 37. Ke2 {[%clk 0:00:33.2]} 37... bxa4
{[%clk 0:01:06.7]} 38. Kd3 {[%clk 0:00:30.5]} 38... c5 {[%clk 0:01:07.1]} 39.
Nd6 {[%clk 0:00:28.1]} 39... a3 {[%clk 0:01:03.4]} 40. Kc2 {[%clk 0:00:24.7]}
40... Kg7 {[%clk 0:01:00.5]} 41. h5 {[%clk 0:00:21.7]} 41... Bd2 {[%clk
0:00:54]} 42. g6 {[%clk 0:00:16.1]} 42... fxg6 {[%clk 0:00:50.8]} 43. hxg6
{[%clk 0:00:16.6]} 43... Kxg6 {[%clk 0:00:36.2]} 44. Nc4 {[%clk 0:00:13.4]}
44... Bb4 {[%clk 0:00:36.4]} 45. Nxe5+ {[%clk 0:00:10.5]} 45... Kg5 {[%clk
0:00:36]} 46. Nc4 {[%clk 0:00:08]} 46... Kf4 {[%clk 0:00:35.8]} 47. e5 {[%clk
0:00:08.5]} 47... Kf5 {[%clk 0:00:36.2]} 48. Kb3 {[%clk 0:00:08.5]} 48... Ke6
{[%clk 0:00:35.3]} 49. Kc2 {[%clk 0:00:07.3]} 49... Kd5 {[%clk 0:00:34.9]} 50.
e6 {[%clk 0:00:03.7]} 50... Kxe6 {[%clk 0:00:34]} 51. Kb3 {[%clk 0:00:03.8]}
51... Kd5 {[%clk 0:00:33.8]} 52. Nb6+ {[%clk 0:00:04.5]} 52... Kd4 {[%clk
0:00:33.7]} 53. Ka2 {[%clk 0:00:03.1]} 53... c4 {[%clk 0:00:33.6]} 54. Na4
{[%clk 0:00:01.2]} 54... c3 {[%clk 0:00:33.4]} 0-1

[Event "Early-Titled-Tuesday-Blitz-September-05-2023"]
[Site "Chess.com"]
[Date "2023.09.05"]
[Round "9"]
[White "Yeremyan_ChessMate"]
[Black "platy3"]
[Result "0-1"]
[WhiteElo "2682"]
[BlackElo "2919"]
[TimeControl "180+1"]
[EndTime "9:43:20 PDT"]
[Termination "platy3 won by resignation"]

1. Nf3 {[%clk 0:02:54.1]} 1... Nf6 {[%clk 0:02:59.9]} 2. g3 {[%clk 0:02:54.8]}
2... b5 {[%clk 0:02:59.5]} 3. Bg2 {[%clk 0:02:55.6]} 3... Bb7 {[%clk 0:02:59.9]}
4. O-O {[%clk 0:02:56.4]} 4... c5 {[%clk 0:02:58.5]} 5. d4 {[%clk 0:02:57.1]}
5... cxd4 {[%clk 0:02:58.4]} 6. Nxd4 {[%clk 0:02:56.8]} 6... Bxg2 {[%clk
0:02:58.3]} 7. Kxg2 {[%clk 0:02:57.5]} 7... Qb6 {[%clk 0:02:58.6]} 8. a4 {[%clk
0:02:56.8]} 8... b4 {[%clk 0:02:56.3]} 9. a5 {[%clk 0:02:57]} 9... Qb7+ {[%clk
0:02:55.3]} 10. Kg1 {[%clk 0:02:57]} 10... e6 {[%clk 0:02:52]} 11. c4 {[%clk
0:02:57.4]} 11... Be7 {[%clk 0:02:43.1]} 12. b3 {[%clk 0:02:56]} 12... O-O
{[%clk 0:02:41.7]} 13. Bb2 {[%clk 0:02:56.7]} 13... Na6 {[%clk 0:02:42.1]} 14.
Nd2 {[%clk 0:02:54.4]} 14... Nc5 {[%clk 0:02:42.3]} 15. N2f3 {[%clk 0:02:54.9]}
15... Nfe4 {[%clk 0:02:40.7]} 16. Qc2 {[%clk 0:02:54.2]} 16... Bf6 {[%clk
0:02:38.7]} 17. Rfd1 {[%clk 0:02:54.6]} 17... a6 {[%clk 0:02:34.7]} 18. Nd2
{[%clk 0:02:45.3]} 18... Rac8 {[%clk 0:02:17.3]} 19. Nxe4 {[%clk 0:02:42.9]}
19... Nxe4 {[%clk 0:02:17.5]} 20. Qd3 {[%clk 0:02:38.8]} 20... Nc5 {[%clk
0:02:10.2]} 21. Qe3 {[%clk 0:02:18.8]} 21... Qe4 {[%clk 0:02:04.5]} 22. Qxe4
{[%clk 0:02:14.7]} 22... Nxe4 {[%clk 0:02:05.4]} 23. Rac1 {[%clk 0:02:14.6]}
23... Nc5 {[%clk 0:02:05.3]} 24. Rb1 {[%clk 0:02:09.5]} 24... Rfd8 {[%clk
0:02:04]} 25. Nc2 {[%clk 0:02:02.1]} 25... Bxb2 {[%clk 0:02:03.8]} 26. Rxb2
{[%clk 0:02:02.2]} 26... Rb8 {[%clk 0:02:04.5]} 27. Rd6 {[%clk 0:02:01]} 27...
Kf8 {[%clk 0:01:56.9]} 28. Rd4 {[%clk 0:01:22.8]} 28... Ke7 {[%clk 0:01:56]} 29.
Rb1 {[%clk 0:01:19.4]} 29... d6 {[%clk 0:01:55.3]} 30. f3 {[%clk 0:01:17.6]}
30... Rd7 {[%clk 0:01:51.6]} 31. e4 {[%clk 0:01:18.1]} 31... f6 {[%clk 0:01:49]}
32. Rd2 {[%clk 0:01:17.8]} 32... Rc7 {[%clk 0:01:26.9]} 33. Nd4 {[%clk
0:01:17.6]} 33... Nb7 {[%clk 0:01:25.3]} 34. Ra1 {[%clk 0:01:14.4]} 34... Nc5
{[%clk 0:01:20.6]} 35. Rb1 {[%clk 0:01:11.8]} 35... g6 {[%clk 0:01:21]} 36. Kf2
{[%clk 0:01:11.1]} 36... Rd8 {[%clk 0:01:14.9]} 37. h4 {[%clk 0:01:10.5]} 37...
h5 {[%clk 0:01:14.2]} 38. Nc2 {[%clk 0:01:10.4]} 38... Rb7 {[%clk 0:01:13.9]}
39. Nd4 {[%clk 0:01:09.1]} 39... Rc8 {[%clk 0:01:12.8]} 40. Ke3 {[%clk
0:01:04.4]} 40... f5 {[%clk 0:01:11.9]} 41. exf5 {[%clk 0:01:01.4]} 41... gxf5
{[%clk 0:01:12.8]} 42. Kf2 {[%clk 0:00:56.9]} 42... Kf6 {[%clk 0:01:09.7]} 43.
Re2 {[%clk 0:00:55.6]} 43... Rd8 {[%clk 0:00:50.8]} 44. Nc6 {[%clk 0:00:43.5]}
44... Rg8 {[%clk 0:00:49.1]} 45. Rd2 {[%clk 0:00:36.9]} 45... Rbg7 {[%clk
0:00:37.6]} 46. Rg1 {[%clk 0:00:21.2]} 46... f4 {[%clk 0:00:37.6]} 47. Nxb4
{[%clk 0:00:19.1]} 47... fxg3+ {[%clk 0:00:33.5]} 48. Kg2 {[%clk 0:00:19.3]}
48... Rb8 {[%clk 0:00:34.2]} 49. Nc6 {[%clk 0:00:18.5]} 49... Rxb3 {[%clk
0:00:33.8]} 50. Rgd1 {[%clk 0:00:14.5]} 50... Re3 {[%clk 0:00:28.1]} 51. Nd4
{[%clk 0:00:09.9]} 51... Re5 {[%clk 0:00:19.5]} 52. Ne2 {[%clk 0:00:09.9]} 52...
Nb3 {[%clk 0:00:16]} 53. Rb2 {[%clk 0:00:08.5]} 53... Nxa5 {[%clk 0:00:16.2]}
54. Rc1 {[%clk 0:00:06.3]} 54... Rb7 {[%clk 0:00:13.8]} 55. Nf4 {[%clk
0:00:06.9]} 55... Rxb2+ {[%clk 0:00:13.6]} 56. Kxg3 {[%clk 0:00:07]} 56... Nb3
{[%clk 0:00:11.1]} 57. Rd1 {[%clk 0:00:05.8]} 57... Rd2 {[%clk 0:00:10.1]} 58.
Rb1 {[%clk 0:00:06.3]} 58... Nd4 {[%clk 0:00:10.3]} 59. Rb7 {[%clk 0:00:05.7]}
59... Ne2+ {[%clk 0:00:10.6]} 0-1